fUSD/lending_fUSD_20251221
["ID","MTS","AMOUNT","RATE_DAILY","PERIOD"]
[399322996,1766302248024,-150.0,0.0001672,2]
[399322997,1766302248033,-150.0,0.00016725,2]
[399322998,1766302248043,-150.0,0.00016725,2]
[399322999,1766302248053,-150.34574057,0.00016729,2]
[399323000,1766302248063,-150.0,0.00016733,2]
[399323001,1766302248073,-150.0,0.00016739,2]
[399323002,1766302248083,-150.0,0.00016741,2]
[399323003,1766302248096,-150.34574057,0.00016746,2]
[399323004,1766302248110,-150.0,0.00016748,2]
[399323005,1766302248120,-150.0,0.00016751,2]
[399323006,1766302248131,-150.0,0.0001676,2]
[399323007,1766302248141,-150.0,0.00016761,2]
[399323008,1766302248151,-150.34574057,0.00016763,2]
[399323009,1766302248160,-1107.46193923,0.00016769,2]
[399323010,1766302248169,-150.0,0.00016769,2]
[399323011,1766302248178,-150.0,0.0001677,2]
[399323012,1766302248187,-150.0,0.00016774,2]
[399323013,1766302248197,-150.0,0.00016777,2]
[399323014,1766302248207,-150.34574057,0.0001678,2]
[399323015,1766302248216,-150.0,0.00016782,2]
[399323016,1766302248226,-150.0,0.00016782,2]
[399323017,1766302248235,-150.34574057,0.00016798,2]
[399323018,1766302248245,-150.0,0.00016801,2]
[399323019,1766302248255,-150.0,0.00016802,2]
[399323020,1766302248264,-150.0,0.00016803,2]
[399323021,1766302248273,-150.0,0.00016806,2]
[399323022,1766302248283,-150.34574057,0.00016815,2]
[399323023,1766302248293,-150.0,0.00016816,2]
[399323024,1766302248303,-150.0,0.00016823,2]
[399323025,1766302248312,-150.0,0.0001683,2]
[399323026,1766302248322,-150.0,0.00016832,2]
[399323027,1766302248331,-150.34574057,0.00016832,2]
[399323028,1766302248340,-150.0,0.00016842,2]
[399323029,1766302248350,-150.0,0.00016843,2]
[399323030,1766302248359,-150.0,0.00016845,2]
[399323031,1766302248369,-150.34574057,0.00016849,2]
[399323032,1766302248379,-150.0,0.0001685,2]
[399323033,1766302248388,-286.25740119,0.00016855,7]
[399323034,1766302248398,-150.0,0.00016856,2]
[399323035,1766302248407,-150.0,0.00016856,2]
[399323036,1766302248417,-30000.0,0.00016862,2]
[399323037,1766302248426,-150.0,0.00016863,2]
[399323038,1766302248436,-150.0,0.00016864,2]
[399323039,1766302248445,-150.34574057,0.00016866,2]
[399323040,1766302248454,-150.0,0.00016873,2]
[399323041,1766302248463,-150.0,0.00016878,2]
[399323042,1766302248472,-150.0,0.00016882,2]
[399323043,1766302248481,-150.34574057,0.00016883,2]
[399323044,1766302248490,-150.0,0.00016884,2]
[399323045,1766302248500,-150.0,0.00016884,2]
[399323046,1766302248509,-150.0,0.00016894,2]
[399323047,1766302248518,-19142.96587987,0.000169,2]
[399323048,1766302248526,-2177.01080811,0.000169,2]
[399323049,1766302248535,-3517.27398555,0.000169,2]
[399323050,1766302248544,-165.26057485,0.000169,2]
[399323051,1766302248553,-150.34574057,0.00016901,2]
[399323052,1766302248563,-150.0,0.00016904,2]
[399323053,1766302248572,-150.0,0.00016908,2]
[399323054,1766302248582,-150.0,0.00016914,2]
[399323055,1766302248591,-150.34574057,0.00016918,2]
[399323056,1766302248600,-150.0,0.00016918,2]
[399323057,1766302248609,-150.0,0.00016925,2]
[399323058,1766302248618,-150.0,0.00016925,2]
[399323059,1766302248628,-150.0,0.00016934,2]
[399323060,1766302248637,-150.34574057,0.00016935,2]
[399323061,1766302248646,-150.0,0.00016945,2]
[399323062,1766302248655,-150.0,0.0001695,2]
[399323063,1766302248664,-150.34574057,0.00016952,2]
[399323064,1766302248673,-150.0,0.00016952,2]
[399323065,1766302248682,-150.0,0.00016955,2]
[399323066,1766302248692,-150.0,0.0001696,2]
[399323067,1766302248701,-150.0,0.00016966,2]
[399323068,1766302248710,-150.34574057,0.00016969,2]
[399323069,1766302248719,-52741.43,0.00016986,2]
[399323070,1766302248730,-158.82091813,0.00016986,2]
[399323071,1766302248741,-187.23652248,0.00016986,2]
[399323072,1766302248750,-150.0,0.00016986,2]
[399323073,1766302248759,-151.8034242,0.00016986,2]
[399323074,1766302248768,-157.90105787,0.00016986,2]
[399323075,1766302248778,-150.34574057,0.00016986,2]
[399323076,1766302248788,-249.74325796,0.00016986,2]
[399323077,1766302248798,-157.05336635,0.00016986,2]
[399323078,1766302248809,-152.15312162,0.00016986,2]
[399323079,1766302248819,-150.84728269,0.00016986,2]
[399323080,1766302248829,-150.64712651,0.00016986,2]
[399323081,1766302248838,-153.05111909,0.00016986,2]
[399323082,1766302248848,-152.82247812,0.00016986,2]
[399323083,1766302248858,-574.96820691,0.0001699,2]
[399323084,1766302248868,-740.38982778,0.0001699,2]
[399323085,1766302248877,-6397.9590015,0.00016994,2]
[399323086,1766302248887,-2571.1504395,0.00016994,2]
[399323087,1766302248896,-1500.0,0.00016998,2]
[399323088,1766302248906,-365.6300001,0.00016998,2]
[399323089,1766302248915,-1500.0,0.00016998,2]
[399323090,1766302248925,-582.55963361,0.00016998,2]
[399323091,1766302248934,-3331.4,0.00016999,2]
[399323092,1766302248944,-2449919.71556233,0.00017,2]
[399323093,1766302248985,-971.65257382,0.00017,2]
[399323094,1766302248999,-273144.53107181,0.00017,2]
[399323095,1766302249011,-166020.98301214,0.00017,2]
[399323096,1766302249023,-2970.32117956,0.00017,2]
[399323097,1766302249034,-803.87073535,0.00017,2]
[399323098,1766302249045,-305.55524937,0.00017,2]
[399323099,1766302249056,-21041.45799257,0.00017,2]
[399323100,1766302249067,-4348.12435315,0.00017,2]
[399323101,1766302249078,-653.76080498,0.00017,2]
[399323102,1766302249090,-1324.69028861,0.00017,2]
[399323103,1766302249101,-278.31694959,0.00017,2]
[399323104,1766302249112,-627.79999989,0.00017,2]
[399323105,1766302249123,-289.024998,0.00017,2]
[399323106,1766302249152,-271.04296097,0.00013814,2]
[399323107,1766302249161,-2009.95432483,0.00017,2]
[399323108,1766302249173,-1956.161805,0.00017,2]
[399323109,1766302249184,-534.0,0.00017,2]
[399323110,1766302249196,-5350.87,0.00017,2]
[399323114,1766302249220,-151.0,0.00013814,2]
[399323116,1766302249229,-419.39513047,0.00017,2]
[399323158,1766302249604,-1182.39122947,0.00016401,2]
[399323160,1766302249614,-407.16164261,0.000169,2]
[399323162,1766302249623,-454.83877762,0.00017,2]
[399324285,1766302488425,150.82,7.74e-05,2]
[399324312,1766302643567,451.21004971,0.000176,30]
[399324313,1766302646693,500.0,0.000176,30]
[399324340,1766302935504,262.734,0.000176,30]
[399324342,1766302940445,578.28566586,0.000176,30]
[399324397,1766303250102,327.7799999,0.000176,30]
[399324451,1766303431403,-404.0,0.00012652,2]
[399324453,1766303431552,-596.0,0.00012652,2]
[399324454,1766303431562,-525.3,0.00013174,2]
[399324455,1766303431571,-1200.0,0.00013252,2]
[399324456,1766303431580,-2240.71934014,0.00013253,2]
[399324457,1766303431592,-666.0,0.00013253,2]
[399324458,1766303431604,-333.28065986,0.00013253,2]
[399324459,1766303431613,-150.0,0.00013271,2]
[399324460,1766303431622,-300.0,0.00013271,2]
[399324461,1766303431631,-8.40543602,0.00013271,2]
[399324462,1766303431643,-291.59456398,0.00013271,2]
[399324463,1766303431652,-1234.14,0.00013272,2]
[399324464,1766303431662,-578.20924308,0.00013272,2]
[399324465,1766303431671,-9211.34798985,0.00013272,2]
[399324466,1766303431680,-2349.0,0.00013272,2]
[399324468,1766303431689,-200.0,0.00013272,2]
[399324470,1766303431699,-151.0,0.00013272,2]
[399324472,1766303431708,-207.4,0.00013272,2]
[399324474,1766303431717,-215.0738,0.00013272,2]
[399324476,1766303431726,-223.0315306,0.00013272,2]
[399324478,1766303431735,-231.28369723,0.00013272,2]
[399324480,1766303431744,-239.84119403,0.00013272,2]
[399324482,1766303431753,-248.71531821,0.00013272,2]
[399324484,1766303431762,-257.91778498,0.00013272,2]
[399324486,1766303431772,-267.46074303,0.00013272,2]
[399324487,1766303431781,-300.0,0.00013272,2]
[399324488,1766303431790,-500.0,0.00013273,2]
[399324489,1766303431799,-500.0,0.00013273,2]
[399324490,1766303431808,-500.0,0.00013273,2]
[399324491,1766303431817,-500.0,0.00013273,2]
[399324492,1766303431826,-500.0,0.00013273,2]
[399324493,1766303431835,-500.0,0.00013273,2]
[399324494,1766303431844,-500.0,0.00013273,2]
[399324495,1766303431854,-261.25,0.00013284,2]
[399324496,1766303431863,-153.34391387,0.00013327,2]
[399324497,1766303431872,-1234.14,0.00013546,2]
[399324498,1766303431881,-1000.0,0.00013647,2]
[399324499,1766303431890,-771.0,0.00013659,2]
[399324500,1766303431899,-500.0,0.00013698,2]
[399324501,1766303431908,-500.0,0.00013698,2]
[399324502,1766303431917,-500.0,0.00013716,2]
[399324503,1766303431926,-500.0,0.00013716,2]
[399324504,1766303431935,-500.0,0.00013716,2]
[399324505,1766303431944,-500.0,0.00013716,2]
[399324506,1766303431954,-500.0,0.00013716,2]
[399324507,1766303431962,-358.54818512,0.00013716,2]
[399324508,1766303431972,-500.0,0.00013716,2]
[399324509,1766303431982,-500.0,0.00013716,2]
[399324510,1766303431991,-441.19615097,0.00013716,2]
[399324511,1766303432000,-1503.96670528,0.00013721,2]
[399324512,1766303432009,-20385.03603572,0.00013721,2]
[399324513,1766303432018,-720.56845126,0.00013721,2]
[399324514,1766303432026,-206.3948809,0.00013808,2]
[399324515,1766303432036,-449.44129263,0.00013808,2]
[399324516,1766303432045,-500.0,0.00013808,2]
[399324517,1766303432053,-200.0,0.00013809,2]
[399324518,1766303432062,-2000.0,0.00013809,2]
[399324519,1766303432071,-1000.0,0.00013809,2]
[399324520,1766303432079,-1000.0,0.00013809,2]
[399324521,1766303432089,-151.0,0.00013809,2]
[399324522,1766303432098,-2000.0,0.00013809,2]
[399324523,1766303432106,-1000.0,0.00013809,2]
[399324524,1766303432116,-1000.0,0.00013809,2]
[399324525,1766303432126,-5000.0,0.00013809,2]
[399324526,1766303432137,-2000.0,0.00013809,2]
[399324527,1766303432147,-1000.0,0.00013809,2]
[399324528,1766303432157,-1000.0,0.00013809,2]
[399324529,1766303432166,-5000.0,0.00013809,2]
[399324530,1766303432176,-2000.0,0.00013809,2]
[399324531,1766303432186,-1000.0,0.00013809,2]
[399324532,1766303432198,-1000.0,0.00013809,2]
[399324533,1766303432208,-5000.0,0.00013809,2]
[399324534,1766303432218,-2000.0,0.00013809,2]
[399324535,1766303432231,-1000.0,0.00013809,2]
[399324536,1766303432240,-1000.0,0.00013809,2]
[399324537,1766303432249,-5000.0,0.00013809,2]
[399324538,1766303432258,-2000.0,0.00013809,2]
[399324539,1766303432269,-1000.0,0.00013809,2]
[399324540,1766303432281,-1000.0,0.00013809,2]
[399324541,1766303432291,-2000.0,0.00013809,2]
[399324542,1766303432303,-5000.0,0.00013809,2]
[399324543,1766303432311,-1000.0,0.00013809,2]
[399324544,1766303432320,-1000.0,0.00013809,2]
[399324545,1766303432329,-2000.0,0.00013809,2]
[399324546,1766303432339,-5000.0,0.00013809,2]
[399324547,1766303432348,-686.66093114,0.00013809,2]
[399324548,1766303432359,-1000.0,0.00013809,2]
[399324549,1766303432369,-500.0,0.00013809,2]
[399324550,1766303432380,-2000.0,0.00013809,2]
[399324551,1766303432390,-5000.0,0.00013809,2]
[399324552,1766303432400,-1000.0,0.00013809,2]
[399324553,1766303432409,-1222.29215686,0.00013809,2]
[399324554,1766303432449,-777.70784314,0.00013809,2]
[399324555,1766303432459,-5000.0,0.00013809,2]
[399324556,1766303432468,-1000.0,0.00013809,2]
[399324557,1766303432478,-664.94318066,0.00013809,2]
[399324562,1766303437515,-2662.05254697,0.00013809,2]
[399324563,1766303437526,-500.0,0.00013809,2]
[399324564,1766303437535,-500.0,0.00013809,2]
[399324565,1766303437545,-500.0,0.00013809,2]
[399324566,1766303437555,-500.0,0.00013809,2]
[399324567,1766303437564,-500.0,0.00013809,2]
[399324568,1766303437573,-500.0,0.00013809,2]
[399324569,1766303437582,-500.0,0.00013809,2]
[399324570,1766303437591,-500.0,0.00013809,2]
[399324571,1766303437600,-500.0,0.00013809,2]
[399324572,1766303437609,-500.0,0.00013809,2]
[399324573,1766303437618,-1000.0,0.00013809,2]
[399324574,1766303437627,-500.0,0.00013809,2]
[399324575,1766303437636,-500.0,0.00013809,2]
[399324576,1766303437645,-1000.0,0.00013809,2]
[399324577,1766303437654,-1000.0,0.00013809,2]
[399324578,1766303437663,-510.99352058,0.00013809,2]
[399324579,1766303437673,-500.0,0.00013809,2]
[399324580,1766303437682,-209.40437685,0.00013809,2]
[399324581,1766303437693,-1000.0,0.00013809,2]
[399324582,1766303437702,-500.0,0.00013809,2]
[399324583,1766303437711,-1000.0,0.00013809,2]
[399324584,1766303437721,-500.0,0.00013809,2]
[399324585,1766303437730,-1000.0,0.00013809,2]
[399324586,1766303437740,-1000.0,0.00013809,2]
[399324587,1766303437749,-500.0,0.00013809,2]
[399324588,1766303437758,-1000.0,0.00013809,2]
[399324589,1766303437768,-553.64373807,0.00013809,2]
[399324590,1766303437778,-1000.0,0.00013809,2]
[399324591,1766303437787,-500.0,0.00013809,2]
[399324592,1766303437797,-207.4,0.00013809,2]
[399324593,1766303437807,-1000.0,0.00013809,2]
[399324594,1766303437818,-500.0,0.00013809,2]
[399324595,1766303437829,-500.0,0.00013809,2]
[399324596,1766303437837,-500.0,0.00013809,2]
[399324597,1766303437850,-200.0,0.00013809,2]
[399324598,1766303437863,-500.0,0.00013809,2]
[399324599,1766303437874,-500.0,0.00013809,2]
[399324600,1766303437883,-151.0,0.00013809,2]
[399324601,1766303437892,-5000.0,0.00013809,2]
[399324602,1766303437901,-500.0,0.00013809,2]
[399324603,1766303437910,-5000.0,0.00013809,2]
[399324604,1766303437919,-500.0,0.00013809,2]
[399324605,1766303437928,-3904.265724,0.00013809,2]
[399324606,1766303437936,-250.0,0.00013809,2]
[399324607,1766303437945,-250.0,0.00013809,2]
[399324608,1766303437954,-250.0,0.00013809,2]
[399324609,1766303437963,-264.16834581,0.00013809,2]
[399324610,1766303437972,-500.0,0.00013809,2]
[399324611,1766303437981,-542.92428573,0.00013809,2]
[399324612,1766303437990,-620.0,0.00013809,2]
[399324613,1766303438000,-151.0,0.00013809,2]
[399324614,1766303438010,-572.609,0.00013815,2]
[399324615,1766303438019,-500.0,0.00013816,2]
[399324616,1766303438029,-500.0,0.00013816,2]
[399324617,1766303438039,-500.0,0.00013816,2]
[399324618,1766303438048,-500.0,0.00013816,2]
[399324619,1766303438057,-500.0,0.00013816,2]
[399324620,1766303438067,-500.0,0.00013816,2]
[399324621,1766303438076,-1000000.0,0.00013817,2]
[399324622,1766303438085,-1234.14,0.0001382,2]
[399324623,1766303438095,-1000.0,0.00013821,2]
[399324624,1766303438104,-688.04388907,0.00013821,2]
[399324625,1766303438113,-1000.0,0.00013821,2]
[399324626,1766303438122,-1000.0,0.00013821,2]
[399324627,1766303438131,-1000.0,0.00013821,2]
[399324628,1766303438140,-1000.0,0.00013821,2]
[399324629,1766303438149,-1000.0,0.00013821,2]
[399324630,1766303438158,-383.31213794,0.00014064,2]
[399324631,1766303438168,-20385.03603571,0.00014074,2]
[399324632,1766303438177,-1234.14,0.00014094,2]
[399324633,1766303438186,-6396.0,0.00014175,2]
[399324634,1766303438196,-720.56845123,0.00014175,2]
[399324635,1766303438205,-1503.96670527,0.00014251,2]
[399324636,1766303438214,-200.0,0.00014357,2]
[399324637,1766303438224,-500.0,0.00014357,2]
[399324638,1766303438237,-574.12855637,0.00014357,2]
[399324639,1766303438247,-200.0,0.00014357,2]
[399324640,1766303438256,-1234.14,0.00014368,2]
[399324641,1766303438266,-1500.0,0.00014368,2]
[399324642,1766303438277,-1008.91462185,0.00014368,2]
[399324643,1766303438286,-1500.0,0.00014368,2]
[399324644,1766303438296,-1500.0,0.00014368,2]
[399324645,1766303438305,-1500.0,0.00014368,2]
[399324646,1766303438314,-1500.0,0.00014368,2]
[399324647,1766303438323,-255.0,0.00014386,2]
[399324648,1766303438332,-20385.03603571,0.00014427,2]
[399324649,1766303438341,-420.0,0.0001455,2]
[399324650,1766303438350,-420.0,0.0001455,2]
[399324651,1766303438359,-1680.0,0.00014577,2]
[399324652,1766303438368,-720.56845123,0.00014629,2]
[399324653,1766303438377,-2349.0,0.00014641,2]
[399324654,1766303438386,-277.35679052,0.00014641,2]
[399324655,1766303438395,-311.1,0.00014641,2]
[399324656,1766303438405,-1234.14,0.00014642,2]
[399324657,1766303438414,-1503.96670527,0.00014781,2]
[399324658,1766303438423,-20385.03603571,0.00014781,2]
[399324659,1766303438432,-151.0,0.00014786,2]
[399324660,1766303438441,-500.0,0.00014796,2]
[399324661,1766303438450,-525.3,0.0001482,2]
[399324662,1766303438459,-200.0,0.00014905,2]
[399324663,1766303438469,-500.0,0.00014905,2]
[399324664,1766303438478,-595.37131296,0.00014905,2]
[399324665,1766303438487,-200.0,0.00014905,2]
[399324666,1766303438496,-1234.14,0.00014916,2]
[399324667,1766303438505,-2000.0,0.00014916,2]
[399324668,1766303438515,-401.46027499,0.00014916,2]
[399324669,1766303438524,-2057.65481763,0.00014916,2]
[399324670,1766303438533,-502.17420355,0.00014916,2]
[399324671,1766303438543,-2000.0,0.00014916,2]
[399324672,1766303438552,-500.0,0.00015041,2]
[399324673,1766303438562,-720.56845123,0.00015083,2]
[399324674,1766303438571,-20385.03603571,0.00015134,2]
[399324675,1766303438580,-152.00744986,0.00015178,2]
[399324676,1766303438590,-151.0,0.00015178,2]
[399324677,1766303438599,-1234.17,0.0001519,2]
[399324678,1766303438608,-150.0,0.00015288,2]
[399324679,1766303438618,-150.0,0.00015288,2]
[399324680,1766303438627,-150.0,0.00015288,2]
[399324681,1766303438636,-150.0,0.00015288,2]
[399324682,1766303438646,-151.28381653,0.00015288,2]
[399324683,1766303438655,-150.0,0.00015288,2]
[399324684,1766303438665,-150.0,0.00015288,2]
[399324685,1766303438674,-150.0,0.00015288,2]
[399324686,1766303438683,-150.0,0.00015288,2]
[399324687,1766303438692,-150.0,0.00015288,2]
[399324688,1766303438701,-150.0,0.00015288,2]
[399324689,1766303438711,-150.0,0.00015288,2]
[399324690,1766303438720,-150.0,0.00015288,2]
[399324691,1766303438729,-150.89972091,0.00015288,2]
[399324692,1766303438737,-150.0,0.00015288,2]
[399324693,1766303438746,-150.0,0.00015288,2]
[399324694,1766303438756,-150.0,0.00015288,2]
[399324695,1766303438765,-1503.96670527,0.00015311,2]
[399324696,1766303438774,-150.0,0.00015324,2]
[399324697,1766303438783,-150.0,0.00015328,2]
[399324698,1766303438792,-150.0,0.00015336,2]
[399324699,1766303438802,-150.0,0.00015348,2]
[399324700,1766303438812,-1000.0,0.00015353,2]
[399324701,1766303438821,-150.0,0.00015358,2]
[399324702,1766303438830,-150.0,0.0001536,2]
[399324703,1766303438839,-150.0,0.00015369,2]
[399324704,1766303438848,-150.0,0.00015369,2]
[399324705,1766303438857,-150.0,0.00015373,2]
[399324706,1766303438867,-150.0,0.00015385,2]
[399324707,1766303438876,-150.0,0.00015396,2]
[399324708,1766303438885,-150.0,0.00015409,2]
[399324709,1766303438894,-150.0,0.00015409,2]
[399324710,1766303438903,-150.0,0.00015429,2]
[399324711,1766303438912,-150.0,0.00015432,2]
[399324712,1766303438921,-150.0,0.00015433,2]
[399324713,1766303438931,-150.0,0.00015449,2]
[399324714,1766303438940,-150.0,0.00015449,2]
[399324715,1766303438949,-617.40005154,0.00015453,2]
[399324716,1766303438959,-150.0,0.00015458,2]
[399324717,1766303438968,-2500.0,0.00015464,2]
[399324718,1766303438977,-150.0,0.00015468,2]
[399324719,1766303438987,-150.0,0.0001547,2]
[399324720,1766303438996,-150.0,0.00015482,2]
[399324721,1766303439005,-20385.03603571,0.00015487,2]
[399324722,1766303439015,-150.0,0.0001549,2]
[399324723,1766303439024,-150.0,0.000155,2]
[399324724,1766303439033,-150.0,0.00015505,2]
[399324725,1766303439043,-150.0,0.0001553,2]
[399324726,1766303439052,-150.0,0.0001553,2]
[399324727,1766303439062,-150.0,0.0001553,2]
[399324728,1766303439071,-150.0,0.0001553,2]
[399324729,1766303439080,-150.0,0.0001553,2]
[399324730,1766303439089,-720.56845123,0.00015538,2]
[399324731,1766303439098,-150.0,0.00015541,2]
[399324732,1766303439107,-150.0,0.00015542,2]
[399324733,1766303439116,-150.0,0.00015571,2]
[399324734,1766303439126,-150.0,0.00015571,2]
[399324735,1766303439135,-150.0,0.00015571,2]
[399324736,1766303439144,-150.0,0.00015571,2]
[399324737,1766303439153,-150.0,0.00015577,2]
[399324738,1766303439162,-150.0,0.00015579,2]
[399324739,1766303439171,-150.0,0.00015591,2]
[399324740,1766303439189,-433.0,0.00015594,2]
[399324741,1766303439204,-575.35496106,0.00015597,2]
[399324742,1766303439218,-150.0,0.00015611,2]
[399324743,1766303439234,-150.0,0.00015611,2]
[399324744,1766303439249,-150.0,0.00015613,2]
[399324745,1766303439264,-150.0,0.00015627,2]
[399324746,1766303439279,-150.0,0.00015627,2]
[399324747,1766303439293,-150.0,0.00015642,2]
[399324748,1766303439308,-150.0,0.00015649,2]
[399324749,1766303439321,-150.0,0.00015652,2]
[399324750,1766303439336,-150.0,0.00015652,2]
[399324751,1766303439350,-150.0,0.00015676,2]
[399324752,1766303439364,-150.0,0.00015685,2]
[399324753,1766303439378,-150.0,0.00015692,2]
[399324754,1766303439392,-150.0,0.00015692,2]
[399324755,1766303439406,-150.0,0.00015712,2]
[399324756,1766303439419,-150.0,0.00015712,2]
[399324757,1766303439433,-150.0,0.00015712,2]
[399324758,1766303439448,-150.0,0.00015712,2]
[399324759,1766303439463,-150.0,0.00015721,2]
[399324760,1766303439476,-150.0,0.00015724,2]
[399324761,1766303439489,-150.0,0.00015733,2]
[399324762,1766303439500,-150.0,0.00015758,2]
[399324763,1766303439511,-150.0,0.00015773,2]
[399324764,1766303439528,-150.0,0.00015773,2]
[399324765,1766303439540,-150.0,0.00015773,2]
[399324767,1766303439551,-150.0,0.00015773,2]
[399324768,1766303439563,-150.0,0.00015773,2]
[399324769,1766303439577,-150.0,0.00015783,2]
[399324770,1766303439590,-150.0,0.00015794,2]
[399324771,1766303439601,-150.0,0.00015797,2]
[399324772,1766303439613,-150.0,0.00015813,2]
[399324773,1766303439624,-150.0,0.00015822,2]
[399324774,1766303439636,-500.0,0.00015823,2]
[399324775,1766303439648,-150.0,0.0001583,2]
[399324776,1766303439671,-150.0,0.00015834,2]
[399324777,1766303439683,-1503.96670527,0.0001584,2]
[399324778,1766303439697,-20385.03603571,0.0001584,2]
[399324779,1766303439710,-150.0,0.00015854,2]
[399324780,1766303439723,-150.0,0.00015854,2]
[399324781,1766303439735,-150.0,0.00015854,2]
[399324782,1766303439748,-150.0,0.00015854,2]
[399324783,1766303439760,-150.0,0.00015854,2]
[399324784,1766303439772,-150.0,0.00015866,2]
[399324785,1766303439784,-150.0,0.0001587,2]
[399324786,1766303439796,-150.0,0.00015882,2]
[399324787,1766303439808,-150.0,0.00015894,2]
[399324788,1766303439820,-150.0,0.00015894,2]
[399324789,1766303439832,-150.0,0.00015902,2]
[399324790,1766303439844,-150.0,0.00015919,2]
[399324791,1766303439856,-150.0,0.00015925,2]
[399324792,1766303439868,-150.0,0.00015935,2]
[399324793,1766303439881,-150.0,0.00015935,2]
[399324794,1766303439893,-150.0,0.00015938,2]
[399324795,1766303439905,-587.0,0.00015952,2]
[399324796,1766303439917,-587.0,0.00015952,2]
[399324797,1766303439929,-150.0,0.00015955,2]
[399324798,1766303439941,-150.0,0.00015967,2]
[399324799,1766303439954,-150.0,0.00015967,2]
[399324800,1766303439966,-500.56420784,0.00015973,2]
[399324801,1766303439978,-500.4654119,0.00015973,2]
[399324802,1766303439990,-500.47443561,0.00015973,2]
[399324803,1766303440002,-330.74959628,0.00015973,2]
[399324804,1766303440014,-503.05961393,0.00015973,2]
[399324805,1766303440027,-334.60508476,0.00015973,2]
[399324806,1766303440039,-500.94315353,0.00015973,2]
[399324807,1766303440051,-501.15885684,0.00015973,2]
[399324808,1766303440063,-500.61743436,0.00015973,2]
[399324809,1766303440075,-500.35420058,0.00015973,2]
[399324810,1766303440087,-590.29428357,0.00015973,2]
[399324811,1766303440099,-333.50168371,0.00015973,2]
[399324812,1766303440112,-452.23233136,0.00015973,2]
[399324813,1766303440123,-500.55342912,0.00015973,2]
[399324814,1766303440135,-502.67024509,0.00015973,2]
[399324815,1766303440147,-500.65341776,0.00015973,2]
[399324816,1766303440160,-501.49447409,0.00015973,2]
[399324817,1766303440172,-500.90575555,0.00015973,2]
[399324818,1766303440185,-570.29356194,0.00015973,2]
[399324819,1766303440197,-501.07980715,0.00015973,2]
[399324820,1766303440209,-555.97636192,0.00015973,2]
[399324821,1766303440223,-500.51801303,0.00015973,2]
[399324822,1766303440238,-501.73374202,0.00015973,2]
[399324823,1766303440250,-160.18740865,0.00015973,2]
[399324824,1766303440263,-500.52093975,0.00015973,2]
[399324825,1766303440282,-162.2682575,0.00015973,2]
[399324826,1766303440295,-500.0,0.00015973,2]
[399324827,1766303440309,-500.82535785,0.00015973,2]
[399324828,1766303440322,-501.04177666,0.00015973,2]
[399324829,1766303440334,-500.88956143,0.00015973,2]
[399324830,1766303440346,-501.45767981,0.00015973,2]
[399324831,1766303440358,-500.81615011,0.00015973,2]
[399324832,1766303440371,-500.77244015,0.00015973,2]
[399324833,1766303440383,-160.18741035,0.00015973,2]
[399324834,1766303440396,-160.18741035,0.00015973,2]
[399324835,1766303440409,-160.18740865,0.00015973,2]
[399324836,1766303440422,-160.18818998,0.00015973,2]
[399324837,1766303440434,-160.18740865,0.00015973,2]
[399324838,1766303440446,-150.17482874,0.00015973,2]
[399324839,1766303440458,-162.38378184,0.00015973,2]
[399324840,1766303440470,-160.18740865,0.00015973,2]